Cogmind - Beta 16 @@@ ROGUE MODE // 2025.11.18 @ 20:48:29 Player: oshi0ne1 Result: Destroyed by G-34 Mercenary with Small Laser Performance ------------- Evolutions (1) 500 Regions Visited (2) 400 Robots Destroyed (35) 175 Value Destroyed (1052) 1052 Prototype IDs (0) 0 Alien Tech Used (0) 0 Bonus (0) 0 TOTAL SCORE: 2127 Bonus ------- None Cogmind --------- Core Integrity 0/400 Matter 135/300 Energy 139/140 System Corruption 1% Temperature Cool (6) Movement Core (500) Ox9 Location -9/Materials Parts ------- > --- POWER (1) -------- Light Deuterium Engine > --- PROPULSION (2) --- (None) > --- UTILITY (4) ------ Large Storage Unit Signal Interpreter > --- WEAPON (2) ------- High-powered Shotgun > --- INVENTORY (15) --- Light Deuterium Engine Light Deuterium Engine Light Deuterium Engine Light Treads Armored Wheel Armored Wheel Armored Wheel Armored Wheel Hacking Suite Light Assault Rifle Autogun Maul Peak State ------------ > --- POWER ------------ Improved Ion Engine > --- PROPULSION ------- Armored Wheel Armored Wheel > --- UTILITY ---------- Heat Sink Large Storage Unit Signal Interpreter Light Armor Plating > --- WEAPON ----------- High-powered Shotgun High-powered Shotgun > --- INVENTORY -------- Light Deuterium Engine Light Deuterium Engine Light Deuterium Engine Light Deuterium Engine Light Treads Light Treads Armored Wheel Armored Wheel Light Assault Rifle Heavy Assault Rifle Autogun Maul [Rating: 18] Favorites ----------- Power Improved Ion Engine Engine Improved Ion Engine Power Core Light Nuclear Core Propulsion Light Treads Treads Light Treads Wheel Armored Wheel Hover Unit Backup Propulsion I Utility Signal Interpreter Device Heat Sink Storage Large Storage Unit Processor Signal Interpreter Protection Light Armor Plating Weapon Assault Rifle Energy Gun Beam Rifle Ballistic Gun Assault Rifle Impact Weapon Maul Build | -11 -10 -9 ------- Run | Yrd Mat Mat Slots Evolved 2 | . . 2 Power . | . . . Propulsion . | . . . Utility 2 | . . 2 Weapon . | . . . Parts Attached 28 | 6 2 20 Power 5 | 1 . 4 Engine 4 | 1 . 3 Core 1 | . . 1 Reactor . | . . . Propulsion 7 | 2 . 5 Treads 5 | 2 . 3 Leg . | . . . Wheel 2 | . . 2 Hover . | . . . Flight . | . . . Utility 7 | 1 1 5 Device 2 | . 1 1 Storage 2 | 1 . 1 Processor 1 | . . 1 Hackware . | . . . Protection 2 | . . 2 Artifact . | . . . Weapon 9 | 2 1 6 Energy Gun 1 | . . 1 Energy Cannon . | . . . Ballistic Gun 7 | 2 . 5 Ballistic Cannon . | . . . Launcher . | . . . Special Weapon . | . . . Impact Weapon 1 | . 1 . Slashing Weapon . | . . . Piercing Weapon . | . . . Special Melee Weapon . | . . . Unidentified Prototypes . | . . . Parts Lost 13 | . . 13 Power 2 | . . 2 Propulsion 3 | . . 3 Utility 3 | . . 3 Weapon 5 | . . 5 Highest Loss Streak 6 | . . 6 To Critical Strikes . | . . . Average Backups 8 | 2 5 10 Power 2 | . 1 3 Propulsion 3 | 1 3 4 Utility . | . . . Weapon 1 | . . 2 Tool/Special . | . . . Unused Backups 15 | . 2 13 Power 7 | . . 7 Propulsion 6 | . 2 4 Utility 1 | . . 1 Weapon 1 | . . 1 Tool/Special . | . . . Average Slot Usage (%) 87 | . 87 87 Engine 10 | . 14 8 Core 1 | . . 1 Treads 14 | . 28 9 Wheel 7 | . . 10 Device 5 | . 2 7 Storage 11 | . 14 11 Processor 8 | . . 11 Protection 3 | . . 5 Energy Gun 1 | . . 2 Ballistic Gun 18 | . 17 18 Impact Weapon 3 | . 10 1 Peak Build Rating 18 | 6 9 18 Average Rating 11 | 4 7 13 On Entrance 4 | . 6 8 Avg Prop Armor Cover (%) . | . . . Naked Turns . | . . . Heaviest Build 37 | 13 16 37 Greatest Support 40 | 40 40 40 Greatest Overweight (x) 10 | . . 10 Average Overweight (x) . | . . . Largest Inventory Capacity 15 | 8 8 15 Average Capacity 12 | 7 8 14 Most Carried 14 | 3 8 14 Average Carried 8 | 2 5 10 Final Capacity 15 | 8 8 15 Final Carried 12 | 3 8 12 Class Distribution -------------------- 85% | Mutant 14% | Scavenger-Mutant Dominant Class ---------------- Mutant | -10/Materials Mutant | -9/Materials Resources | -11 -10 -9 ----------- Run | Yrd Mat Mat Matter Collected 963 | 209 48 706 Remotely . | . . . Salvage Created 1305 | . 141 1164 Parts 78 | . 7 71 Haulers Intercepted 1 | . . 1 Recyclers Shooed 2 | . . 2 Parts Field Recycled . | . . . Retrieved Matter . | . . . Parts Self-Destructed . | . . . Prevented . | . . . Parts Restored . | . . . Kills | -11 -10 -9 ------- Run | Yrd Mat Mat Combat Hostiles Destroyed 29 | . 3 26 Melee 1 | . . 1 Guns 27 | . 2 25 AOE 1 | . 1 . Classes Destroyed 9 | . 2 7 Builder 1 | . 1 . Hauler 1 | . . 1 Recycler 1 | . . 1 Operator 1 | . . 1 Watcher 2 | . . 2 Swarmer 6 | . . 6 Grunt 17 | . 3 14 Duelist 2 | . . 2 Sentry 4 | . . 4 Best Kill Streak 5 | . 3 5 Combat Bots Only 4 | . 2 4 Max Kills in Single Turn 2 | . 1 2 Gunslinging 1 | . . 1 Exploded 1 | . 1 . Melee 1 | . . 1 Uniques/NPCs Destroyed . | . . . Combat | -11 -10 -9 -------- Run | Yrd Mat Mat Hostile Shots Fired 262 | . 15 247 Missed 67 | . 5 62 Hits 195 | . 10 185 Melee 8 | . . 8 Projectile 187 | . 10 177 Critical Strikes 2 | . . 2 Damage Taken 2476 | . 244 2232 Core 460 | . 51 409 Absorbed by Shields . | . . . Regen/Repaired (Parts) 43 | . . 43 Core Remaining (%) 89 | 100 79 . Volleys Fired 110 | . 13 97 Largest 2 | . 2 2 Hottest 79 | . 40 79 Shots Fired 191 | . 14 177 Gun 191 | . 14 177 Cannon . | . . . Launcher . | . . . Special . | . . . Kinetic 173 | . 14 159 Thermal 18 | . . 18 Explosive . | . . . Electromagnetic . | . . . Robot Hit Streak 15 | . 3 15 Robot Miss Streak 6 | . 2 6 Penetration Max . | . . . Secondary Targets 3 | . . 3 Max Gunslinging Chain 1 | . . 1 Shots Hit Robots 131 | . 10 121 Core Hits 60 | . 7 53 Critical Kills . | . . . Critical Parts Destroyed 3 | . 1 2 Critical Strikes 3 | . 1 2 Destroy 3 | . 1 2 Melee Attacks 10 | . 2 8 Impact 10 | . 2 8 Slashing . | . . . Piercing . | . . . Sneak Attacks 2 | . 1 1 Combat Hostiles . | . . . Follow-up Attacks . | . . . Damage Inflicted 2023 | . 236 1787 Guns 1745 | . 103 1642 Cannons . | . . . Explosions 85 | . 85 . Melee 193 | . 48 145 Ramming . | . . . Kinetic 1586 | . 103 1483 Thermal 244 | . 85 159 Explosive . | . . . Electromagnetic . | . . . Impact 193 | . 48 145 Slashing . | . . . Piercing . | . . . Highest Corruption 1 | . . 1 Average Corruption 1 | . . 1 Corruption Purged . | . . . Corruption Blocked . | . . . Effects 3 | . . 3 Message Errors 2 | . . 2 Matter Fused 1 | . . 1 Overload Shots . | . . . Overflow Damage . | . . . Projectiles . | . . . Explosions . | . . . Melee . | . . . Knockbacks 2 | . . 2 Impact 2 | . . 2 Kinetic . | . . . Secondary . | . . . Self-Inflicted Damage 112 | . 112 . Shots 1 | . 1 . Rammed . | . . . Targets Rammed . | . . . Kicked . | . . . Crushed . | . . . Highest Temperature 122 | . 5 122 Average Temperature 37 | . 4 38 Received Heat Transfer 948 | . 75 873 Siege Activations . | . . . Martial Activations . | . . . Shielding Activations . | . . . Robots Disrupted . | . . . Combat Hostiles . | . . . Robots Corrupted . | . . . Combat Hostiles . | . . . Parts Fried . | . . . Impact Corruptions . | . . . Robots Melted . | . . . Combat Hostiles . | . . . Parts Melted 2 | . . 2 Heat Transferred 457 | . 50 407 Parts Sabotaged . | . . . Parts Stolen . | . . . Parts Stripped . | . . . Power Chain Reactions . | . . . Alert | -11 -10 -9 ------- Run | Yrd Mat Mat Maximum Alert Level 1 | . . 1 Low Security (%) 81 | 100 100 74 Level 1 18 | . . 25 Level 2 . | . . . Level 3 . | . . . Level 4 . | . . . Level 5 . | . . . High Security . | . . . Max Security . | . . . Peak Influence 306 | . 119 306 Initial 37 | . . 37 Average 96 | . 24 125 Influence Increases 872 | . 149 723 Destroy 0b10 Robot/C 580 | . 60 520 Destroy 0b10 Robot/NC 30 | . 5 25 Destroy Leader 146 | . 10 136 Successful Hack 6 | . . 6 Disable Machine 60 | . 45 15 Destroy Structure 35 | . 29 6 Lose Combat Pursuer 15 | . . 15 Influence Decreases 621 | . 60 561 Entered New Map 52 | . . 52 Time Decay 439 | . 60 379 Lost Part 130 | . . 130 Squads Dispatched 5 | . . 5 Investigation 3 | . . 3 Extermination . | . . . Reinforcement 2 | . . 2 Assault . | . . . Garrison . | . . . Intercept . | . . . Searches Triggered . | . . . Construction Impeded . | . . . Haulers Reinforced . | . . . Active Scanning Responses . | . . . Cargo Convoy Interrupts . | . . . Stealth | -11 -10 -9 --------- Run | Yrd Mat Mat Distress Signals 1 | . 1 . Communications Jammed . | . . . Distress Signals . | . . . Times Spotted 45 | . 7 38 Peak Tracking Total 6 | . 4 6 Tactical Retreats 1 | . . 1 Traps | -11 -10 -9 ------- Run | Yrd Mat Mat Traps Triggered 2 | . . 2 Indirectly . | . . . Trap Hack Attempts . | . . . Triggered . | . . . Disarmed . | . . . Reprogrammed . | . . . Reused . | . . . Traps Extracted . | . . . Installed . | . . . Triggered . | . . . Machines | -11 -10 -9 ---------- Run | Yrd Mat Mat Machines Disabled 4 | . 3 1 Max in Single Turn 2 | . 2 1 Machines Repaired . | . . . Machines Dismantled . | . . . Machines Sabotaged . | . . . Overloaded Fab Kills . | . . . Hacking | -11 -10 -9 --------- Run | Yrd Mat Mat Machines Accessed 8 | . 3 5 Terminals 6 | . 3 3 Fabricators . | . . . Repair Stations 2 | . . 2 Recycling Units . | . . . Scanalyzers . | . . . Garrison Access . | . . . Total Hacks 19 | . 6 13 Successful 10 | . 4 6 Failed 9 | . 2 7 Catastrophic 2 | . . 2 Database Lockouts . | . . . Manual . | . . . Terminals 13 | . 6 7 Fabricators . | . . . Repair Stations 6 | . . 6 Recycling Units . | . . . Scanalyzers . | . . . Garrison Access . | . . . Terminal Hacks 6 | . 4 2 Branch Access Points 1 | . 1 . Alert Level 1 | . 1 . Zone Layout 4 | . 2 2 Fabricator Hacks . | . . . Repair Station Hacks 4 | . . 4 Scan Component 2 | . . 2 Repair 1 | . . 1 Refit 1 | . . 1 Recycling Unit Hacks . | . . . Scanalyzer . | . . . Garrison Access Hacks . | . . . Unauthorized Hacks . | . . . Terminals . | . . . Fabricators . | . . . Repair Stations . | . . . Recycling Units . | . . . Scanalyzers . | . . . Garrison Access . | . . . Data Cores Recovered . | . . . Used . | . . . Hacking Detections 6 | . 2 4 Full Trace Events 4 | . . 4 Feedback Events . | . . . Feedback Blocked . | . . . Robot Schematics Acquired . | . . . Robots Built . | . . . Authchips . | . . . Time . | . . . Total Robot Build Rating . | . . . Part Schematics Acquired . | . . . Parts Built . | . . . Authchips . | . . . Time . | . . . Total Part Build Rating . | . . . Part Studies Acquired . | . . . Parts Repaired 1 | . . 1 Time 38 | . . 38 Parts Recycled . | . . . Recycled Matter . | . . . Retrieved Matter . | . . . Retrieved Components . | . . . Parts Scanalyzed . | . . . Part Schematics Acquired . | . . . Parts Damaged . | . . . Bothacking | -11 -10 -9 ------------ Run | Yrd Mat Mat Used RIF Installer . | . . . Robots Hacked . | . . . Non-combat . | . . . Combat . | . . . Robot Hacks Applied . | . . . Relay Couplers Released . | . . . Fabnet Peak Effective % . | . . . Robots Rewired . | . . . Allies Hacked . | . . . Hacks Repelled . | . . . Allies | -11 -10 -9 -------- Run | Yrd Mat Mat Total Allies . | . . . Largest Group . | . . . Highest-Rated Group . | . . . Highest-Rated Ally . | . . . Total Orders . | . . . Ally Attacks . | . . . Total Damage . | . . . Kills . | . . . Allies Corrupted . | . . . Allies Melted . | . . . Intel | -11 -10 -9 ------- Run | Yrd Mat Mat Active Infowar (turns) 343 | . 52 291 Sensors 343 | . 52 291 Robot Analysis Total . | . . . Derelict Logs Recovered . | . . . Drone Launches . | . . . Drone Recoveries . | . . . Exploration | -11 -10 -9 ------------- Run | Yrd Mat Mat Turns Passed 1444 | 73 332 1039 Spaces Moved 686 | 41 175 470 Core 4 | 3 . 1 Treads 382 | 38 175 169 Legs . | . . . Wheels 299 | . . 299 Hover 1 | . . 1 Flight . | . . . Fastest Speed 50 | 50 160 105 Average Speed 139 | 151 160 131 Slowest Speed 550 | 160 160 550 Overloaded Moves . | . . . Propulsion Burnouts . | . . . Robots Hopped . | . . . Potential Cave-ins . | . . . Cave-ins Triggered . | . . . Exploration Rate (%) 31 | 4 45 45 Regions Visited 2 Branch Regions . Pre-discovered Areas . | . . . Known Exits Taken . | . . . Unknown Exits Taken 2 | 1 1 . Scrap Searched . | . . . Spaces Dug 5 | . . 5 Terrain Destroyed 33 | . 28 5 Melee 5 | . . 5 Projectile . | . . . AOE 28 | . 28 . Terrain Rammed . | . . . Walls Destroyed . | . . . Machines Disabled . | . . . Actions | -11 -10 -9 --------- Run | Yrd Mat Mat Total 965 | 49 208 708 Wait 75 | . 6 69 Move 684 | 40 174 470 Hop . | . . . Pick Up 28 | 3 7 18 Fast Attach 13 | 6 1 6 Attach 7 | . . 7 Detach 1 | . . 1 Swap 23 | . 3 20 Drop 14 | . 2 12 Fire 110 | . 13 97 Melee 10 | . 2 8 Ram . | . . . Kick . | . . . Crush . | . . . Escape Stasis . | . . . Rewire . | . . . Trap . | . . . Miscellaneous . | . . . Route ------- -11/Scrapyard -10/Materials (discovered 2 exits: *Mat / *Min) -9/Materials (discovered 2 exits: *Mat x2) History --------- Turn | Location | Event 22 | -11/Scrapyard | Discovered new exit (range 15) 74 | -11/Scrapyard | Entered Materials 89 | -10/Materials | Identified exit to Mines 303 | -10/Materials | Build established: Mutant 380 | -10/Materials | Discovered new exit (range 15) 406 | -10/Materials | Entered another Materials area 406 | -9/Materials | Evolved 2 slots: Utility x2 500 | -9/Materials | Repaired Lgt. Nuclear Core 728 | -9/Materials | Lost 6 parts (1p2n1u2w) 901 | -9/Materials | Core integrity fell below 50% 1040 | -9/Materials | Discovered new exit (range 16) 1076 | -9/Materials | Identified exit to Materials 1340 | -9/Materials | Discovered exit to Materials (range 16) 1430 | -9/Materials | Core integrity fell below 20% 1445 | -9/Materials | Destroyed by G-34 Mercenary with Small Laser Last Messages --------------- K-01 Serf collects debris. Connecting with Terminal... ALERT: Suspicious activity at Terminal M012. Dispatching Investigation squad. K-01 Serf collects debris. Imp. Ion Engine destroyed. K-01 Serf cleans the Terminal. Lgt. Armor Plating destroyed. K-01 Serf cleans the Terminal. Lgt. Treads severed. K-01 Serf cleans the Terminal. Heat Sink destroyed. Hvy. Assault Rifle destroyed. I6=X:V,DNKAL9YGHL72H95OKJO&,1M